bitfinex-derivatives/quotes_ETHF0:USTF0_20250504
["timestamp","ask_amount","ask_price","bid_price","bid_amount"]
[1746331913082,1.5789,1835.9,1835.8,6.25153]
[1746331914083,2.66812,1835.9,1835.8,6.25153]
[1746331914581,1.5789,1835.9,1835.8,6.25153]
[1746331915079,2.66812,1835.9,1835.8,5.1623]
[1746331915983,2.66812,1835.9,1835.8,6.25157]
[1746331916484,1.5789,1835.9,1835.8,6.25157]
[1746331917381,2.66812,1835.9,1835.8,6.25157]
[1746331918383,2.66812,1835.9,1835.8,3.466]
[1746331918979,1.08939,1835.6,1835.5,0.8403]
[1746331919289,1.08939,1835.6,1835.5,3.465]
[1746331920282,4.77739,1835.6,1835.5,3.465]
[1746331921585,1.08945,1835.5,1835.4,3.465]
[1746331921882,6.82215,1835.5,1835.4,3.465]
[1746331922083,10.51015,1835.5,1835.4,3.465]
[1746331923186,1.08951,1835.4,1835.3,3.465]
[1746331923384,3.52981,1835.4,1835.3,3.465]
[1746331924184,7.21781,1835.4,1835.3,3.465]
[1746331924988,1.08963,1835.2,1835.1,6.49014945]
[1746331925285,1.08969,1835.1,1835.0,3.465]
[1746331925488,3.46029,1835.1,1835.0,3.465]
[1746331926183,7.14829,1835.1,1835.0,3.465]
[1746331926388,5.2573,1835.1,1835.0,4.55475]
[1746331926578,5.2573,1835.1,1835.0,7.82165]
[1746331927083,1.5693,1835.1,1835.0,7.82165]
[1746331927889,1.6611,1835.4,1835.1,1.08966]
[1746331928184,1.5693,1835.3,1835.1,2.71456]
[1746331928890,1.08963,1835.2,1835.1,2.71456]
[1746331929391,2.65891,1835.3,1835.1,1.6249]
[1746331929593,1.5693,1835.3,1835.2,1.08963]
[1746331929785,4.29724,1835.6,1835.4,1.08946]
[1746331930090,2.67165,1835.5,1835.4,1.08946]
[1746331930282,2.67165,1835.5,1835.4,3.466]
[1746331931088,6.35965,1835.5,1835.4,3.466]
[1746331934697,5.2702,1835.5,1835.4,4.55551]
[1746331935193,1.5822,1835.5,1835.4,4.55551]
[1746331935392,2.67165,1835.5,1835.4,4.55551]
[1746331935595,2.67165,1835.5,1835.4,3.466]
[1746331936395,2.67165,1835.5,1835.4,4.55551]
[1746331939096,1.5822,1835.5,1835.4,4.55551]
[1746331939398,2.67165,1835.5,1835.4,4.55551]
[1746331942099,1.5822,1835.5,1835.4,4.55551]
[1746331944099,2.67165,1835.5,1835.4,4.55551]
[1746331949606,1.5822,1835.5,1835.4,4.55551]
[1746331949809,1.5822,1835.5,1835.4,6.17961]
[1746331950308,2.67165,1835.5,1835.4,6.96511]
[1746331951809,2.67165,1835.5,1835.4,5.8756]
[1746331952012,2.67165,1835.5,1835.4,3.466]
[1746331954806,2.67165,1835.5,1835.4,4.55551]
[1746331957416,2.67165,1835.5,1835.4,3.466]
[1746331958510,2.67165,1835.5,1835.4,4.55551]
[1746331959112,1.5822,1835.5,1835.4,4.55551]
[1746331959311,2.67165,1835.5,1835.4,6.28911]
[1746331962121,1.5822,1835.5,1835.4,6.28911]
[1746331963524,4.29705,1835.9,1835.4,16.13118]
[1746331963711,1.7181,1835.8,1835.7,1.08929]
[1746331963910,1.7181,1835.8,1835.7,4.55429]
[1746331964311,2.80737,1835.8,1835.7,4.55429]
[1746331964517,1.7181,1835.8,1835.7,4.55429]
[1746331966618,2.80737,1835.8,1835.7,3.465]
[1746331967830,2.80737,1835.8,1835.7,4.55433]
[1746331968031,2.80737,1835.8,1835.7,3.465]
[1746331969134,6.49537,1835.8,1835.7,3.465]
[1746331972834,9.70317,1835.8,1835.7,3.465]
[1746331982141,6.49537,1835.8,1835.7,3.465]
[1746331982342,9.70317,1835.8,1835.7,3.465]
[1746331987945,1.08939,1835.6,1835.5,4.3284]
[1746331988846,2.80489,1835.6,1835.5,4.3284]
[1746331989147,6.49289,1835.6,1835.5,4.3284]
[1746331990346,6.49289,1835.6,1835.5,5.9169]
[1746331991243,6.49289,1835.6,1835.5,6.7705]
[1746331992248,6.49289,1835.6,1835.5,7.85995]
[1746331992547,6.49289,1835.6,1835.5,6.7705]
[1746331993345,4.77739,1835.6,1835.5,7.85995]
[1746331993650,3.688,1835.6,1835.5,12.85995]
[1746331994248,3.2078,1835.8,1835.7,1.08933]
[1746331994551,1.08922,1835.9,1835.8,1.08927]
[1746331994751,1.08922,1835.9,1835.8,3.464]
[1746331995142,1.08922,1835.9,1835.8,6.8228]
[1746331996139,2.68282,1835.9,1835.8,6.8228]
[1746332003153,2.68282,1835.9,1835.8,3.464]
[1746332004154,6.37082,1835.9,1835.8,3.464]
[1746332006358,9.57862,1835.9,1835.8,3.464]
[1746332008658,1.08945,1835.5,1835.4,18.55459199]
[1746332008960,1.08945,1835.5,1835.4,22.01759199]
[1746332009157,4.77745,1835.5,1835.4,11.14191]
[1746332009663,3.688,1835.5,1835.4,11.14191]
[1746332010057,5.4222,1835.5,1835.4,11.14191]
[1746332011866,6.51165,1835.5,1835.4,11.14191]
[1746332012765,5.4222,1835.5,1835.4,11.14191]
[1746332013964,6.51165,1835.5,1835.4,11.14191]
[1746332014166,5.4222,1835.5,1835.4,11.14191]
[1746332014958,6.51165,1835.5,1835.4,11.14191]
[1746332015668,5.4222,1835.5,1835.4,11.14191]
[1746332016060,6.51165,1835.5,1835.4,11.14191]
[1746332016366,6.51165,1835.5,1835.4,7.93411]
[1746332016669,6.51165,1835.5,1835.4,11.14191]
[1746332017165,5.4222,1835.5,1835.4,11.14191]
[1746332019468,3.688,1835.5,1835.4,11.14191]
[1746332020173,2.74614,1835.7,1835.6,1.08939]
[1746332021166,6.43414,1835.7,1835.6,1.08939]
[1746332022964,6.43414,1835.7,1835.6,4.55239]
[1746332023269,3.688,1835.7,1835.6,4.55239]
[1746332023461,3.688,1835.7,1835.6,6.23079]
[1746332029866,3.688,1835.7,1835.6,9.43859]
[1746332031371,1.6504,1835.9,1835.8,1.08927]
[1746332031572,2.73962,1835.9,1835.8,1.08927]
[1746332032072,6.42762,1835.9,1835.8,1.08927]
[1746332034072,6.42762,1835.9,1835.8,2.76967]
[1746332035175,6.42762,1835.9,1835.8,1.08927]
[1746332035768,1.08927,1835.8,1835.7,10.04523476]
[1746332035967,2.76187,1835.8,1835.7,10.04523476]
[1746332036164,6.44987,1835.8,1835.7,2.79418]
[1746332036673,5.3606,1835.8,1835.7,2.79418]
[1746332040478,6.44987,1835.8,1835.7,1.92868]
[1746332040877,5.3606,1835.8,1835.7,1.08928]
[1746332041879,6.44987,1835.8,1835.7,1.08928]
[1746332049187,1.08933,1835.7,1835.6,4.3038]
[1746332049388,4.34063,1835.7,1835.6,3.463]
[1746332050086,8.02863,1835.7,1835.6,3.463]
[1746332051585,6.9393,1835.7,1835.6,4.55239]
[1746332057293,8.02863,1835.7,1835.6,4.55239]
[1746332057894,6.9393,1835.7,1835.6,4.55239]
[1746332058192,8.02863,1835.7,1835.6,4.55239]
[1746332058394,8.02863,1835.7,1835.6,3.463]
[1746332059899,16.23643,1835.7,1835.6,3.463]
[1746332060285,1.08939,1835.6,1835.5,7.25105476]
[1746332060489,2.68459,1835.6,1835.5,7.25105476]
[1746332060686,7.68459,1835.6,1835.5,7.25105476]
[1746332061096,11.37259,1835.6,1835.5,7.25105476]
[1746332062299,1.08945,1835.5,1835.4,7.25105476]
[1746332062501,2.71015,1835.5,1835.4,7.25105476]
[1746332062797,5.91795,1835.5,1835.4,7.25105476]
[1746332063188,9.60595,1835.5,1835.4,7.25105476]
[1746332066603,1.08957,1835.3,1835.2,3.461]
[1746332067206,4.77757,1835.3,1835.2,3.461]
[1746332067393,6.45927,1835.3,1835.2,3.461]
[1746332070299,1.08969,1835.1,1835.0,66.02085476]
[1746332070499,1.08969,1835.1,1835.0,69.48285476]
[1746332070700,1.08969,1835.1,1835.0,62.2318]
[1746332070900,2.78889,1835.1,1835.0,62.2318]
[1746332071105,6.47689,1835.1,1835.0,62.2318]
[1746332072309,6.47689,1835.1,1835.0,59.024]
[1746332073303,6.47689,1835.1,1835.0,60.11375]
[1746332074713,3.688,1835.1,1835.0,60.11375]
[1746332075107,1.5922,1835.2,1835.1,1.08969]
[1746332075310,2.68183,1835.2,1835.1,2.4673]
[1746332076109,6.36983,1835.2,1835.1,2.4673]
[1746332076903,5.2802,1835.2,1835.1,1.94499]
[1746332077211,6.36983,1835.2,1835.1,3.2583]
[1746332078212,6.36983,1835.2,1835.1,1.6463]
[1746332080310,5.2802,1835.2,1835.1,2.73599]
[1746332080505,3.688,1835.2,1835.1,4.33679]
[1746332080709,3.688,1835.2,1835.1,7.54459]
[1746332083217,3.63542,1835.4,1835.1,6.4549]
[1746332083518,2.5459,1835.4,1835.3,1.08957]
[1746332083709,3.63541,1835.4,1835.3,4.55157]
[1746332084219,7.32341,1835.4,1835.3,4.55157]
[1746332084617,3.688,1835.4,1835.3,4.55157]
[1746332096126,3.688,1835.4,1835.3,7.75937]
[1746332098829,0.19650766,1835.4,1835.3,12.75937]
[1746332099021,7.66e-06,1835.4,1835.3,18.67137]
[1746332099224,1.6162,1835.7,1835.6,1.08939]
[1746332099422,1.6162,1835.7,1835.6,4.55039]
[1746332099823,1.6162,1835.7,1835.6,6.22829]
[1746332100827,0.8586,1835.9,1835.8,1.08927]
[1746332102226,6.1505,1835.9,1835.8,1.08927]
[1746332106730,6.1505,1835.9,1835.7,1.08928]
[1746332107028,1.6718,1835.8,1835.7,1.08928]
[1746332108126,5.3598,1835.8,1835.7,1.08928]
[1746332110431,5.3598,1835.8,1835.7,4.29708]
[1746332110623,5.3598,1835.8,1835.7,6.83068]
[1746332111123,1.6718,1835.8,1835.7,6.83068]
[1746332116737,0.8263,1836.0,1835.9,1.08922]
[1746332116927,0.8263,1836.0,1835.9,4.54922]
[1746332117326,2.484,1836.0,1835.9,4.54922]
[1746332118536,2.484,1836.0,1835.9,7.75702]
[1746332118835,1.6577,1836.0,1835.9,7.75702]
[1746332119037,3.688,1836.2,1836.1,1.0891]
[1746332119237,0.8315,1836.3,1836.2,1.08904]
[1746332119529,0.8315,1836.3,1836.2,4.54904]
[1746332120435,0.8315,1836.3,1836.2,6.24854]
[1746332121235,0.8024,1836.7,1836.6,1.0888]
[1746332121441,1.5934,1836.7,1836.5,3.458]
[1746332121640,1.5934,1836.7,1836.6,1.0888]
[1746332122333,3.324,1836.7,1836.6,1.0888]
[1746332128739,3.324,1836.7,1836.6,4.2966]
[1746332130439,2.5216,1836.7,1836.6,4.2966]
[1746332130743,0.859,1837.0,1836.9,1.08862]
[1746332130943,3.315,1837.0,1836.9,4.54662]
[1746332133245,2.456,1837.0,1836.9,4.54662]
[1746332133838,2.456,1837.0,1836.9,6.12602]
[1746332135039,1.6157,1837.0,1836.9,6.12602]
[1746332135239,1.6157,1837.0,1836.9,6.97142]
[1746332135733,0.8323,1837.2,1837.1,1.0885]
[1746332135933,0.8323,1837.2,1837.1,4.2963]
[1746332137048,0.82,1837.3,1837.2,1.08844]
[1746332137235,0.82,1837.3,1837.2,6.25154]
[1746332138645,3.2078,1837.9,1837.2,5.1631]
[1746332138945,1.08827,1837.5,1837.4,3.2078]
[1746332139145,4.77627,1837.5,1837.4,6.6648]
[1746332139340,3.688,1837.5,1837.4,6.6648]
[1746332140545,3.688,1837.5,1837.1,0.8271]
[1746332140546,9.77627,1837.5,1837.0,1.08855]
[1746332140742,1.08841,1837.3,1837.1,3.457]
[1746332141139,4.77641,1837.3,1837.1,4.5455]
[1746332141537,1.08844,1837.2,1837.1,3.457]
[1746332141741,1.08844,1837.2,1837.1,4.5455]
[1746332141944,4.77643,1837.3,1837.1,4.5455]
[1746332142747,1.08844,1837.2,1837.1,4.5455]
[1746332143147,1.08843,1837.3,1837.1,4.5455]
[1746332143350,1.08844,1837.2,1837.1,3.457]
[1746332143549,1.08844,1837.2,1837.1,4.5455]
[1746332143749,1.08843,1837.3,1837.1,4.5455]
[1746332144047,4.9277,1837.4,1837.1,3.457]
[1746332144249,1.08844,1837.2,1837.1,3.457]
[1746332145149,4.77644,1837.2,1837.1,3.457]
[1746332146448,3.688,1837.2,1837.1,4.5455]
[1746332146750,3.688,1837.2,1837.1,7.7533]
[1746332147152,1.7199,1837.4,1837.3,1.08839]
[1746332147651,1.7199,1837.4,1837.2,1.6381]
[1746332147950,2.80825,1837.4,1837.2,2.72652]
[1746332150352,1.7199,1837.4,1837.3,1.08839]
[1746332150553,2.80823,1837.4,1837.2,2.7265]
[1746332150755,1.7199,1837.4,1837.3,1.08839]
[1746332150945,2.80823,1837.4,1837.3,2.66189]
[1746332151141,1.7199,1837.4,1837.3,2.66189]
[1746332151556,1.7199,1837.4,1837.2,1.08841]
[1746332151946,2.80824,1837.4,1837.2,2.66191]
[1746332152955,1.7199,1837.4,1837.2,1.5735]
[1746332153858,2.80827,1837.4,1837.2,2.66194]
[1746332154156,2.80828,1837.4,1837.2,2.66194]
[1746332154354,1.08839,1837.3,1837.1,7.75327]
[1746332154658,1.08843,1837.3,1837.1,7.75327]
[1746332154955,1.08843,1837.3,1837.1,7.75329]
[1746332155557,1.08843,1837.3,1837.2,1.08844]
[1746332156259,1.08844,1837.2,1837.1,6.6648]
[1746332156449,2.72121,1837.2,1836.7,6.6638]
[1746332156654,11.8958,1837.3,1836.7,6.6638]
[1746332156655,1.08867,1836.9,1836.7,6.6638]
[1746332156948,0.8433,1836.8,1836.7,6.6638]
[1746332157556,1.0886,1837.0,1836.8,1.08864]
[1746332157756,1.9319,1837.0,1836.8,2.73284]
[1746332158052,0.8433,1837.0,1836.9,1.08862]
[1746332158255,0.8433,1837.0,1836.9,2.73282]
[1746332158458,4.0312,1837.1,1837.0,1.08856]
[1746332158656,4.0312,1837.1,1837.0,4.54456]
[1746332159357,5.7374,1837.1,1837.0,4.54456]
[1746332159556,6.8259,1837.1,1837.0,4.54456]
[1746332159961,6.8259,1837.1,1837.0,3.456]
[1746332160352,5.7374,1837.1,1837.0,6.18716]
[1746332160553,2.5296,1837.1,1837.0,6.18716]
[1746332160850,0.8234,1837.1,1837.0,6.18716]
[1746332161052,0.8234,1837.1,1837.0,6.99726]
[1746332161453,2.67335,1837.2,1837.0,7.86313]
[1746332161755,2.67335,1837.2,1837.1,1.6426]
[1746332162965,1.0885,1837.1,1837.0,5.132]
[1746332163260,2.6812,1837.1,1837.0,6.8028]
[1746332163462,2.6812,1837.1,1837.0,7.89136]
[1746332163665,2.6812,1837.1,1837.0,6.8028]
[1746332164868,2.6812,1837.1,1837.0,7.89136]
[1746332165369,1.5927,1837.1,1837.0,7.89136]
[1746332166057,2.6812,1837.1,1837.0,7.89136]
[1746332166261,1.5927,1837.1,1837.0,7.89136]
[1746332166569,2.6812,1837.1,1837.0,7.89136]
[1746332166768,1.08847,1837.2,1837.1,1.0885]
[1746332166971,2.66257,1837.2,1837.1,2.7489]
[1746332167467,1.5741,1837.2,1837.1,2.7489]
[1746332167772,1.08844,1837.2,1837.1,2.7489]
[1746332168171,0.8223,1837.3,1837.1,1.6604]
[1746332168369,1.91072,1837.3,1837.2,1.6604]
[1746332169069,7.23872,1837.3,1837.2,1.6604]
[1746332169872,7.23872,1837.3,1837.2,5.1164]
[1746332170170,7.23872,1837.3,1837.2,3.456]
[1746332170974,1.08854,1837.1,1836.9,1.08857]
[1746332171176,1.08854,1837.1,1837.0,1.08856]
[1746332171676,2.7285,1837.1,1837.0,1.08856]
[1746332171977,1.08856,1837.0,1836.9,2.68011]
[1746332172373,1.64,1837.1,1837.0,1.08856]
[1746332173577,2.7285,1837.1,1837.0,1.7031]
[1746332174178,2.7285,1837.1,1837.0,2.79166]
[1746332174179,1.64,1837.1,1837.0,2.79166]
[1746332174777,2.7285,1837.1,1837.0,2.79166]
[1746332175074,2.7285,1837.1,1837.0,1.7031]
[1746332175876,2.7285,1837.1,1837.0,2.79166]
[1746332177271,2.7285,1837.1,1837.0,1.7031]
[1746332177472,2.7285,1837.1,1837.0,2.79166]
[1746332178978,1.64,1837.1,1837.0,2.79166]
[1746332179373,1.91072,1837.3,1837.2,1.08844]
[1746332179872,0.8223,1837.3,1837.2,1.08844]
[1746332180071,0.8223,1837.3,1837.2,2.71884]
[1746332180072,2.44,1837.3,1837.2,2.71884]
[1746332180579,3.52839,1837.3,1837.2,1.6304]
[1746332180779,3.52839,1837.3,1837.2,2.71884]
[1746332181176,7.21639,1837.3,1837.2,2.71884]
[1746332183276,6.128,1837.3,1837.2,2.71884]
[1746332184484,7.21639,1837.3,1837.2,2.71884]
[1746332184679,6.128,1837.3,1837.2,2.71884]
[1746332184980,7.21639,1837.3,1837.2,1.6304]
[1746332185380,1.08844,1837.2,1837.1,4.26]
[1746332185579,2.82724,1837.2,1837.1,4.26]
[1746332185783,2.82724,1837.2,1837.1,3.456]
[1746332186886,2.82724,1837.2,1837.1,4.54449]
[1746332187181,1.7388,1837.2,1837.1,4.54449]
[1746332187573,2.82724,1837.2,1837.1,4.54449]
[1746332187981,1.7388,1837.2,1837.1,4.54449]
[1746332188576,0.8223,1837.3,1837.2,1.08844]
[1746332188874,2.4741,1837.3,1837.2,2.66834]
[1746332193484,0.8223,1837.3,1837.2,2.66834]
[1746332193685,0.8223,1837.3,1837.2,3.52654]
[1746332194383,2.4514,1837.3,1837.2,3.52654]
[1746332195085,0.8223,1837.3,1837.2,6.73434]
[1746332195290,3.50884,1837.6,1837.4,1.08828]
[1746332195490,4.31574,1837.6,1837.4,4.54428]
[1746332195689,1.6291,1837.5,1837.4,4.54428]
[1746332195892,1.6291,1837.5,1837.4,6.20138]
[1746332196284,1.5984,1837.6,1837.5,1.08827]
[1746332196490,3.195,1837.6,1837.5,1.08827]
[1746332196693,2.3881,1837.6,1837.5,1.08827]
[1746332196992,2.3881,1837.6,1837.5,2.67007]
[1746332203195,1.08827,1837.5,1837.4,10.70705476]
[1746332203388,3.63237,1837.5,1837.4,10.70705476]
[1746332204293,7.32037,1837.5,1837.4,10.70705476]
[1746332204896,10.52817,1837.5,1837.4,7.25105476]
[1746332205095,1.08833,1837.4,1837.3,10.87568199]
[1746332205390,2.69583,1837.4,1837.3,10.87568199]
[1746332205700,1.08842,1837.3,1837.1,1.08849]
[1746332205890,0.8623,1837.2,1837.1,1.08849]
[1746332206499,3.3336,1837.2,1837.1,1.08849]
[1746332207098,7.0216,1837.2,1837.1,1.08849]
[1746332208099,3.3336,1837.2,1837.1,1.08849]
[1746332209291,3.3336,1837.2,1837.1,2.72619]
[1746332209491,4.29611,1837.5,1837.3,1.08836]
[1746332209692,2.66903,1837.4,1837.3,1.08836]
[1746332210092,6.35703,1837.4,1837.2,2.4601]
[1746332210298,1.5807,1837.3,1837.2,3.5485]
[1746332215002,1.08829,1837.5,1837.2,2.4601]
[1746332215202,2.72719,1837.5,1837.3,5.0697]
[1746332215504,2.72719,1837.5,1837.4,1.08833]
[1746332215706,1.6389,1837.5,1837.4,2.70203]
[1746332216302,6.41517,1837.5,1837.4,2.70203]
[1746332216902,5.3269,1837.5,1837.4,2.70203]
[1746332218207,6.41517,1837.5,1837.4,2.70203]
[1746332218609,5.3269,1837.5,1837.4,2.70203]
[1746332223813,5.3269,1837.5,1837.4,1.08833]
[1746332224911,5.3269,1837.5,1837.3,3.456]
[1746332225215,2.82353,1837.4,1837.3,3.456]
[1746332225712,2.82353,1837.4,1837.3,4.54439]
[1746332226012,2.82353,1837.4,1837.3,3.456]
[1746332226217,6.51153,1837.4,1837.3,3.456]
[1746332227615,6.51153,1837.4,1837.3,4.54439]
[1746332229114,6.51153,1837.4,1837.3,3.456]
[1746332229513,6.51153,1837.4,1837.3,4.54439]
[1746332230218,6.51153,1837.4,1837.3,3.456]
[1746332230414,6.51153,1837.4,1837.3,4.54439]
[1746332231116,6.51153,1837.4,1837.3,3.456]
[1746332232116,5.4232,1837.4,1837.3,4.54439]
[1746332232619,6.51153,1837.4,1837.3,4.54439]
[1746332233816,6.51153,1837.4,1837.3,3.456]
[1746332234018,3.2078,1836.5,1836.3,8.27455796]
[1746332234211,3.2078,1836.5,1836.2,25.05000066]
[1746332234212,1.08898,1836.3,1836.2,19.34572736]
[1746332234514,1.0891,1836.1,1836.0,48.40781705]
[1746332234719,4.2969,1836.1,1836.0,44.46690705]
[1746332234915,9.2969,1836.1,1836.0,44.46690705]
[1746332235124,12.9849,1836.1,1836.0,30.49014303]
[1746332235418,12.9849,1836.1,1836.0,26.81401303]
[1746332235609,12.9849,1836.1,1836.0,24.84366303]
[1746332235911,12.9849,1836.1,1836.0,20.01617303]
[1746332236522,12.9849,1836.1,1836.0,17.80281303]
[1746332236817,12.9849,1836.1,1836.0,12.96135303]
[1746332237021,1.08916,1836.0,1835.9,40.76679548]
[1746332237318,8.92396,1836.0,1835.9,38.82123548]
[1746332237509,13.92396,1836.0,1835.9,33.85466548]
[1746332238015,13.92396,1836.0,1835.9,31.45830548]
[1746332238222,13.92396,1836.0,1835.9,27.57748837]
[1746332238520,13.92396,1836.0,1835.9,22.80542837]
[1746332238715,13.92396,1836.0,1835.9,17.16991837]
[1746332238915,13.92396,1836.0,1835.9,14.56696837]
[1746332239215,13.92396,1836.0,1835.2,1.6115]
[1746332239216,1.08957,1835.3,1835.2,1.6115]
[1746332239512,3.2078,1835.3,1835.2,30.77354759]
[1746332239819,4.29737,1835.3,1835.2,57.54693759]
[1746332240219,7.98537,1835.3,1835.2,52.54693759]
[1746332240615,6.8958,1835.3,1835.2,52.54693759]
[1746332240815,7.98537,1835.3,1835.2,52.54693759]
[1746332242127,6.8958,1835.3,1835.2,52.54693759]
[1746332242315,6.8958,1835.3,1835.2,53.63656759]
[1746332242624,6.8958,1835.3,1835.2,30.77354759]
[1746332242815,6.8958,1835.3,1835.2,53.63656759]
[1746332243010,6.8958,1835.3,1835.2,52.54693759]
[1746332243522,7.98537,1835.3,1835.2,52.54693759]
[1746332243721,6.8958,1835.3,1835.2,52.54693759]
[1746332244423,7.98537,1835.3,1835.2,52.54693759]
[1746332245016,6.8958,1835.3,1835.2,53.63656759]
[1746332245423,6.8958,1835.3,1835.2,49.46767162]
[1746332246724,6.8958,1835.3,1835.2,42.51977771]
[1746332247026,7.98537,1835.3,1835.2,41.43014771]
[1746332247835,7.98537,1835.3,1835.2,42.51977771]
[1746332249330,7.98537,1835.3,1835.2,44.19597771]
[1746332250536,6.8958,1835.3,1835.2,44.19597771]
[1746332254236,3.2078,1835.7,1835.6,1.08939]
[1746332254543,3.2078,1835.7,1835.6,42.51953771]
[1746332256145,6.8958,1835.7,1835.6,42.51953771]
[1746332257741,6.8958,1835.7,1835.6,44.15193771]
[1746332259242,3.2078,1835.7,1835.6,44.15193771]
[1746332261243,3.688,1835.9,1835.8,1.08927]
[1746332261543,6.8958,1835.9,1835.8,1.08927]
[1746332261738,6.8958,1835.9,1835.8,33.88423301]
[1746332266549,6.8958,1835.9,1835.8,12.11084301]
[1746332266845,6.8958,1835.9,1835.8,33.88423301]
[1746332270340,6.8958,1835.9,1835.8,22.86266]
[1746332270541,6.8958,1835.9,1835.8,33.88423301]
[1746332271147,3.688,1835.9,1835.8,33.88423301]
[1746332271347,6.8958,1835.9,1835.8,33.88423301]
[1746332272144,1.08927,1835.8,1835.7,2.76882]
[1746332272350,7.98506,1835.9,1835.8,32.79496301]
[1746332272650,7.98506,1835.9,1835.8,35.52583301]
[1746332272849,7.98506,1835.9,1835.8,2.73087]
[1746332273043,9.60666,1835.9,1835.8,2.73087]
[1746332273651,8.5174,1835.9,1835.8,2.73087]
[1746332274154,6.8958,1835.9,1835.8,2.73087]
[1746332274451,6.8958,1835.9,1835.8,35.52583301]
[1746332274650,6.8958,1835.9,1835.8,39.15883301]
[1746332275141,3.2078,1835.9,1835.8,39.15883301]
[1746332275745,3.60023775,1836.0,1835.9,1.08922]
[1746332275947,3.60023775,1836.0,1835.9,35.58748301]
[1746332276243,7.28823775,1836.0,1835.9,35.58748301]
[1746332278055,3.688,1836.0,1835.9,35.58748301]
[1746332280161,3.2078,1836.1,1836.0,1.08916]
[1746332280457,3.2078,1836.1,1836.0,37.18962301]
[1746332280657,3.2078,1836.1,1836.0,15.41623301]
[1746332281159,6.8958,1836.1,1836.0,37.18962301]
[1746332281572,3.688,1836.1,1836.0,37.18962301]
[1746332282160,8.97713871,1836.2,1836.1,1.0891]
[1746332282464,8.97713871,1836.2,1836.1,39.09576301]
[1746332283657,3.2078,1836.3,1836.2,1.08904]
[1746332283863,3.2078,1836.3,1836.2,35.46270301]
[1746332284365,6.8958,1836.3,1836.2,35.46270301]
[1746332286063,13.02939732,1836.3,1836.2,35.46270301]
[1746332289267,13.02939732,1836.3,1836.2,28.51845046]
[1746332289966,13.02939732,1836.3,1836.2,29.60749046]
[1746332291361,9.82159732,1836.3,1836.2,29.60749046]
[1746332291668,13.02939732,1836.3,1836.2,29.60749046]
[1746332292770,13.02939732,1836.3,1836.2,31.30929046]
[1746332294075,9.82159732,1836.3,1836.2,31.30929046]
[1746332294266,6.13359732,1836.3,1836.2,34.99729046]
[1746332295164,6.13359732,1836.3,1836.2,31.30929046]
[1746332297577,3.62717925,1836.3,1836.2,31.30929046]
[1746332299977,7.71719732,1836.3,1836.2,9.53590046]
[1746332300177,11.40519732,1836.3,1836.2,9.53590046]
[1746332303282,13.22028539,1836.3,1836.2,9.53590046]
[1746332303779,13.22028539,1836.3,1836.2,31.30929046]
[1746332304681,13.22028539,1836.3,1836.2,2.79084]
[1746332305983,13.22028539,1836.3,1836.2,28.51845046]
[1746332306181,13.22028539,1836.3,1836.1,2.25735154]
[1746332306374,13.22028539,1836.3,1836.2,28.51845046]
[1746332306680,14.01648539,1836.3,1836.2,1.08904]
[1746332307376,23.50834541,1836.3,1836.2,1.08904]
[1746332309877,23.50834541,1836.3,1836.2,22.86243]
[1746332311483,23.50834541,1836.3,1836.2,29.60749046]
[1746332312085,22.71214541,1836.3,1836.2,29.60749046]
[1746332312384,22.71214541,1836.3,1836.2,31.19949046]
[1746332313283,21.12854541,1836.3,1836.2,31.19949046]
[1746332314285,7.94868539,1836.3,1836.2,31.19949046]
[1746332317286,5.45280324,1836.3,1836.2,31.19949046]
[1746332321592,6.14721927,1836.3,1836.2,31.19949046]
[1746332322995,6.14721927,1836.3,1836.2,9.42610046]
[1746332323295,7.73501927,1836.3,1836.2,7.83410046]
[1746332325092,2.28221603,1836.3,1836.2,7.83410046]
[1746332326393,2.28221603,1836.3,1836.2,1.08904]
[1746332327398,2.28221603,1836.3,1836.2,2.66844]
[1746332328099,5.97021603,1836.3,1836.2,2.66844]
[1746332328598,14.94735474,1836.3,1836.2,2.66844]
[1746332329095,11.25935474,1836.3,1836.2,2.66844]
[1746332330100,14.94735474,1836.3,1836.2,2.66844]
[1746332330598,18.15515474,1836.3,1836.2,2.66844]
[1746332331101,27.5788366,1836.3,1836.2,2.66844]
[1746332331294,23.8908366,1836.3,1836.2,2.66844]
[1746332334102,5.49001603,1836.3,1836.2,2.66844]
[1746332335703,5.49001603,1836.3,1836.2,31.18689046]
[1746332338000,11.18285613,1836.3,1836.2,31.18689046]
[1746332340505,7.97505613,1836.3,1836.2,31.18689046]
[1746332341107,0.69441603,1836.3,1836.2,31.18689046]
[1746332342409,0.69441603,1836.3,1836.2,1.08904]
[1746332342603,2.39431603,1836.3,1836.2,1.08904]
[1746332342807,2.39431603,1836.3,1836.1,3.34641154]
[1746332343012,6.78044,1836.2,1836.1,2.25735154]
[1746332343510,6.78044,1836.2,1836.1,3.34645154]
[1746332343903,5.6914,1836.2,1836.1,3.34645154]
[1746332344105,28.4746366,1836.2,1836.1,1.0891]
[1746332344303,34.5637066,1836.2,1836.0,1.08916]
[1746332344504,2.5131,1836.1,1836.0,1.08916]
[1746332348711,3.60223,1836.1,1835.9,4.64117]
[1746332348908,1.6264,1836.0,1835.9,4.64117]
[1746332349410,1.6264,1836.0,1835.9,33.15962046]
[1746332352620,9.59842265,1836.0,1835.9,33.15962046]
[1746332357624,10.68758265,1836.0,1835.9,33.15962046]
[1746332357818,9.59842265,1836.0,1835.9,33.15962046]
[1746332362829,10.68758265,1836.0,1835.9,32.07045046]
[1746332363130,14.37558265,1836.0,1835.9,3.552]